Cogmind - Beta 13 @@@ ROGUE MODE // 2024.04.28 @ 16:45:58 Player: e.v.o Result: Self-destructed Performance ------------- Evolutions (1) 500 Regions Visited (4) 800 Robots Destroyed (26) 130 Value Destroyed (513) 513 Prototype IDs (3) 60 Alien Tech Used (0) 0 Bonus (215) 215 TOTAL SCORE: 2218 Bonus ------- High Alert Combat Kills 15 Entered Garrisons 200 Cogmind --------- Core Integrity 28/400 Matter 146/300 Energy 100/100 System Corruption 0% Temperature Cool (0) Movement Flying (37) Location -9/Garrison Parts ------- > --- POWER (1) -------- (None) > --- PROPULSION (2) --- Improved Flight Unit Improved Flight Unit > --- UTILITY (4) ------ Small Storage Unit Visual Processing Unit > --- WEAPON (2) ------- Light Assault Rifle Mining Claw > --- INVENTORY (8) ---- Improved Flight Unit Improved Flight Unit Improved Flight Unit Improved Flight Unit Heat Sink Peak State ------------ > --- POWER ------------ Light Ion Engine > --- PROPULSION ------- Improved Flight Unit Improved Flight Unit > --- UTILITY ---------- Small Storage Unit Weight Redist. System Visual Processing Unit Shield Generator > --- WEAPON ----------- Light Assault Rifle Mining Claw > --- INVENTORY -------- Light Ion Engine Flight Unit Flight Unit Flight Unit Improved Flight Unit Heat Sink Light Assault Rifle Light Assault Rifle [Rating: 17] Favorites ----------- Power Light Ion Engine Engine Light Ion Engine Propulsion Hover Unit Leg Aluminum Leg Hover Unit Hover Unit Flight Unit Flight Unit Utility Small Storage Unit Device Weight Redist. System Storage Small Storage Unit Processor Visual Processing Unit Weapon Light Assault Rifle Energy Gun EM Pulse Gun Ballistic Gun Light Assault Rifle Slashing Weapon Mining Claw Build | -11 -10 -9 -9 -9 ------- Run | Yrd Mat Mat Sto Gar Slots Evolved 2 | . . 2 . . Power . | . . . . . Propulsion . | . . . . . Utility 2 | . . 2 . . Weapon . | . . . . . Parts Attached 45 | 6 14 18 4 3 Power 7 | 1 4 1 1 . Engine 7 | 1 4 1 1 . Core . | . . . . . Reactor . | . . . . . Propulsion 14 | 2 4 4 2 2 Treads . | . . . . . Leg 4 | 2 2 . . . Wheel . | . . . . . Hover 4 | . 2 2 . . Flight 6 | . . 2 2 2 Utility 8 | 1 2 5 . . Device 4 | . 1 3 . . Storage 2 | 1 . 1 . . Processor 2 | . 1 1 . . Hackware . | . . . . . Protection . | . . . . . Artifact . | . . . . . Weapon 16 | 2 4 8 1 1 Energy Gun 3 | 1 2 . . . Energy Cannon . | . . . . . Ballistic Gun 11 | 1 2 6 1 1 Ballistic Cannon . | . . . . . Launcher . | . . . . . Special Weapon . | . . . . . Impact Weapon . | . . . . . Slashing Weapon 2 | . . 2 . . Piercing Weapon . | . . . . . Special Melee Weapon . | . . . . . Unidentified Prototypes 1 | . . . 1 . Parts Lost 4 | . . . 4 . Power 2 | . . . 2 . Propulsion . | . . . . . Utility 1 | . . . 1 . Weapon 1 | . . . 1 . Highest Loss Streak 3 | . . . 3 . To Critical Strikes . | . . . . . Average Slot Usage (%) 95 | . 98 98 94 73 Engine 10 | . 14 11 8 . Leg 4 | . 15 . . . Hover 10 | . 12 14 . . Flight 8 | . . 7 22 22 Device 16 | . 10 21 18 7 Storage 11 | . 14 11 11 11 Processor 9 | . 4 11 11 11 Energy Gun 4 | . 12 1 . . Ballistic Gun 14 | . 13 15 11 11 Slashing Weapon 4 | . . 4 11 11 Naked Turns . | . . . . . Heaviest Build 16 | 14 15 16 13 8 Greatest Support 20 | 20 20 18 16 16 Greatest Overweight (x) 1 | 1 1 . 1 . Average Overweight (x) . | . . . . . Largest Inventory Capacity 8 | 8 8 8 8 8 Average Capacity 7 | 6 8 8 8 8 Most Carried 8 | 2 8 8 8 6 Average Carried 6 | 1 5 7 7 5 Final Capacity 8 | 8 8 8 8 8 Final Carried 8 | 2 8 7 6 5 Class Distribution -------------------- 73% | Mutant 26% | Scavenger-Mutant Dominant Class ---------------- Mutant | -10/Materials Scavenger-Mutant | -9/Materials Mutant | -9/Storage Mutant | -9/Garrison Resources | -11 -10 -9 -9 -9 ----------- Run | Yrd Mat Mat Sto Gar Matter Collected 705 | 233 229 243 . . Remotely . | . . . . . Salvage Created 672 | . 277 311 84 . Parts 72 | . 30 32 10 . Haulers Intercepted . | . . . . . Recyclers Shooed . | . . . . . Parts Field Recycled . | . . . . . Retrieved Matter . | . . . . . Parts Self-Destructed . | . . . . . Prevented . | . . . . . Kills | -11 -10 -9 -9 -9 ------- Run | Yrd Mat Mat Sto Gar Combat Hostiles Destroyed 23 | . 9 10 4 . Melee 1 | . . . 1 . Guns 21 | . 8 10 3 . AOE 1 | . 1 . . . Classes Destroyed 6 | . 5 1 . . Builder 1 | . 1 . . . Operator 1 | . 1 . . . Watcher 1 | . 1 . . . Swarmer 15 | . 6 6 3 . Grunt 4 | . 3 . 1 . Sentry 4 | . . 4 . . Best Kill Streak 4 | . 4 4 2 . Combat Bots Only 4 | . 4 4 2 . Max Kills in Single Turn 2 | . 2 1 1 . Gunslinging . | . . . . . Exploded 1 | . 1 . . . Melee 1 | . . . 1 . Uniques/NPCs Destroyed . | . . . . . Combat | -11 -10 -9 -9 -9 -------- Run | Yrd Mat Mat Sto Gar Hostile Shots Fired 224 | . 36 83 105 . Missed 88 | . 13 33 42 . Damage Taken 1259 | . 231 374 654 . Core 389 | . 17 104 268 . Absorbed by Shields 169 | . . 128 41 . Regen/Repaired (Parts) 10 | . . 10 . . Core Remaining (%) 96 | 100 93 . . . Volleys Fired 73 | . 22 36 15 . Largest 2 | . 2 2 1 . Hottest 70 | . 70 63 20 . Shots Fired 122 | . 44 63 15 . Gun 122 | . 44 63 15 . Cannon . | . . . . . Launcher . | . . . . . Special . | . . . . . Kinetic 93 | . 22 56 15 . Thermal 2 | . 2 . . . Explosive . | . . . . . Electromagnetic 27 | . 20 7 . . Robot Hit Streak 10 | . 4 9 10 . Robot Miss Streak 4 | . 4 3 2 . Penetration Max . | . . . . . Secondary Targets 4 | . 3 1 . . Max Gunslinging Chain 1 | . 1 1 . . Shots Hit Robots 70 | . 24 38 8 . Core Hits 35 | . 15 16 4 . Critical Kills 1 | . . 1 . . Critical Parts Destroyed . | . . . . . Critical Strikes 2 | . 1 1 . . Destroy 1 | . . 1 . . Corrupt 1 | . 1 . . . Melee Attacks 33 | . . 23 10 . Impact . | . . . . . Slashing 33 | . . 23 10 . Piercing . | . . . . . Sneak Attacks . | . . . . . Combat Hostiles . | . . . . . Follow-up Attacks . | . . . . . Damage Inflicted 986 | . 384 501 101 . Guns 881 | . 324 501 56 . Cannons . | . . . . . Explosions 60 | . 60 . . . Melee 45 | . . . 45 . Ramming . | . . . . . Kinetic 645 | . 119 470 56 . Thermal 86 | . 86 . . . Explosive . | . . . . . Electromagnetic 210 | . 179 31 . . Impact . | . . . . . Slashing 45 | . . . 45 . Piercing . | . . . . . Highest Corruption . | . . . . . Average Corruption . | . . . . . Corruption Purged . | . . . . . Corruption Blocked . | . . . . . Overload Shots . | . . . . . Overflow Damage . | . . . . . Projectiles . | . . . . . Explosions . | . . . . . Melee . | . . . . . Knockbacks . | . . . . . Impact . | . . . . . Kinetic . | . . . . . Secondary . | . . . . . Self-Inflicted Damage 10 | . 10 . . . Shots 1 | . 1 . . . Rammed . | . . . . . Targets Rammed . | . . . . . Kicked . | . . . . . Crushed . | . . . . . Highest Temperature 72 | . 72 9 11 . Average Temperature 19 | . 27 5 5 . Received Heat Transfer 368 | . 78 77 213 . Siege Activations . | . . . . . Robots Corrupted . | . . . . . Combat Hostiles . | . . . . . Parts Fried . | . . . . . Impact Corruptions . | . . . . . Robots Melted . | . . . . . Combat Hostiles . | . . . . . Parts Melted . | . . . . . Heat Transferred 174 | . 174 . . . Parts Sabotaged . | . . . . . Parts Stolen . | . . . . . Parts Stripped . | . . . . . Power Chain Reactions 1 | . 1 . . . Alert | -11 -10 -9 -9 -9 ------- Run | Yrd Mat Mat Sto Gar Peak Influence 483 | . 347 483 323 212 Initial 212 | . . 146 131 212 Average 245 | . 172 322 220 212 Maximum Alert Level 2 | . 1 2 1 1 Low Security (%) 24 | 100 43 3 47 . Level 1 64 | . 56 72 52 100 Level 2 11 | . . 23 . . Level 3 . | . . . . . Level 4 . | . . . . . Level 5 . | . . . . . High Security . | . . . . . Max Security . | . . . . . Squads Dispatched 5 | . 2 2 1 . Investigation 2 | . 1 1 . . Extermination . | . . . . . Reinforcement 3 | . 1 1 1 . Assault . | . . . . . Garrison . | . . . . . Intercept . | . . . . . Searches Triggered . | . . . . . Construction Impeded . | . . . . . Haulers Reinforced . | . . . . . Active Scanning Responses . | . . . . . Cargo Convoy Interrupts . | . . . . . Stealth | -11 -10 -9 -9 -9 --------- Run | Yrd Mat Mat Sto Gar Distress Signals 3 | . 3 . . . Communications Jammed . | . . . . . Distress Signals . | . . . . . Times Spotted 46 | . 15 12 17 2 Peak Tracking Total 13 | . 4 4 13 . Tactical Retreats 2 | . 1 . 1 . Traps | -11 -10 -9 -9 -9 ------- Run | Yrd Mat Mat Sto Gar Traps Triggered 2 | . 2 . . . Indirectly . | . . . . . Trap Hack Attempts . | . . . . . Triggered . | . . . . . Disarmed . | . . . . . Reprogrammed . | . . . . . Reused . | . . . . . Traps Extracted . | . . . . . Installed . | . . . . . Triggered 1 | . 1 . . . Machines | -11 -10 -9 -9 -9 ---------- Run | Yrd Mat Mat Sto Gar Machines Disabled 1 | . . . 1 . Max in Single Turn 1 | . . . 1 . Machines Repaired . | . . . . . Machines Dismantled . | . . . . . Machines Sabotaged . | . . . . . Overloaded Fab Kills . | . . . . . Hacking | -11 -10 -9 -9 -9 --------- Run | Yrd Mat Mat Sto Gar Machines Accessed 10 | . 2 6 2 . Terminals 8 | . 2 5 1 . Fabricators . | . . . . . Repair Stations 1 | . . 1 . . Recycling Units . | . . . . . Scanalyzers . | . . . . . Garrison Access 1 | . . . 1 . Total Hacks 29 | . 5 20 4 . Successful 13 | . 3 8 2 . Failed 16 | . 2 12 2 . Catastrophic 2 | . 1 1 . . Database Lockouts . | . . . . . Manual . | . . . . . Terminals 25 | . 5 18 2 . Fabricators . | . . . . . Repair Stations 2 | . . 2 . . Recycling Units . | . . . . . Scanalyzers . | . . . . . Garrison Access 2 | . . . 2 . Terminal Hacks 10 | . 3 6 1 . Robot Analysis 1 | . . 1 . . Prototype ID Bank 1 | . . 1 . . Locate Traps 3 | . 1 1 1 . Surveillance Status 1 | . 1 . . . Transport Status 1 | . . 1 . . Hauler Manifests 1 | . . 1 . . Registered Components 1 | . 1 . . . Zone Layout 1 | . . 1 . . Fabricator Hacks . | . . . . . Repair Station Hacks 2 | . . 2 . . Scan Component 1 | . . 1 . . Repair 1 | . . 1 . . Recycling Unit Hacks . | . . . . . Scanalyzer . | . . . . . Garrison Access Hacks 1 | . . . 1 . Unlock Access 1 | . . . 1 . Unauthorized Hacks . | . . . . . Terminals . | . . . . . Fabricators . | . . . . . Repair Stations . | . . . . . Recycling Units . | . . . . . Scanalyzers . | . . . . . Garrison Access . | . . . . . Data Cores Recovered . | . . . . . Used . | . . . . . Hacking Detections 8 | . 1 5 2 . Full Trace Events 1 | . . 1 . . Feedback Events . | . . . . . Feedback Blocked . | . . . . . Robot Schematics Acquired . | . . . . . Robots Built . | . . . . . Authchips . | . . . . . Time . | . . . . . Total Robot Build Rating . | . . . . . Part Schematics Acquired . | . . . . . Parts Built . | . . . . . Authchips . | . . . . . Time . | . . . . . Total Part Build Rating . | . . . . . Parts Repaired 1 | . . 1 . . Time 32 | . . 32 . . Parts Recycled . | . . . . . Recycled Matter . | . . . . . Retrieved Matter . | . . . . . Retrieved Components . | . . . . . Parts Scanalyzed . | . . . . . Part Schematics Acquired . | . . . . . Parts Damaged . | . . . . . Bothacking | -11 -10 -9 -9 -9 ------------ Run | Yrd Mat Mat Sto Gar Used RIF Installer . | . . . . . Robots Hacked . | . . . . . Non-combat . | . . . . . Combat . | . . . . . Robot Hacks Applied . | . . . . . Relay Couplers Released . | . . . . . Fabnet Peak Effective % . | . . . . . Robots Rewired . | . . . . . Allies Hacked . | . . . . . Hacks Repelled . | . . . . . Allies | -11 -10 -9 -9 -9 -------- Run | Yrd Mat Mat Sto Gar Total Allies . | . . . . . Largest Group . | . . . . . Highest-Rated Group . | . . . . . Highest-Rated Ally . | . . . . . Total Orders . | . . . . . Ally Attacks . | . . . . . Total Damage . | . . . . . Kills . | . . . . . Allies Corrupted . | . . . . . Allies Melted . | . . . . . Intel | -11 -10 -9 -9 -9 ------- Run | Yrd Mat Mat Sto Gar Robot Analysis Total 1 | . . 1 . . Derelict Logs Recovered . | . . . . . Drone Launches . | . . . . . Drone Recoveries . | . . . . . Exploration | -11 -10 -9 -9 -9 ------------- Run | Yrd Mat Mat Sto Gar Turns Passed 1315 | 59 350 626 175 105 Spaces Moved 1094 | 46 289 508 213 38 Core 11 | 11 . . . . Treads . | . . . . . Legs 139 | 35 104 . . . Wheels . | . . . . . Hover 378 | . 185 193 . . Flight 566 | . . 315 213 38 Fastest Speed 37 | 50 56 37 37 37 Average Speed 55 | 105 83 44 37 37 Slowest Speed 130 | 120 130 56 110 37 Overloaded Moves . | . . . . . Propulsion Burnouts . | . . . . . Robots Hopped 14 | . . 5 9 . Cave-ins Triggered . | . . . . . Exploration Rate (%) 28 | 3 56 24 44 16 Regions Visited 4 Branch Regions 1 Pre-discovered Areas . | . . . . . Known Exits Taken 1 | . . . 1 . Unknown Exits Taken 3 | 1 1 1 . . Scrap Searched . | . . . . . Spaces Dug 12 | . . 9 3 . Terrain Destroyed 14 | . 2 9 3 . Melee 12 | . . 9 3 . Projectile . | . . . . . AOE 2 | . 2 . . . Terrain Rammed . | . . . . . Walls Destroyed . | . . . . . Machines Disabled . | . . . . . Actions | -11 -10 -9 -9 -9 --------- Run | Yrd Mat Mat Sto Gar Total 1600 | 53 352 799 268 128 Wait 304 | . 7 188 26 83 Move 1066 | 45 288 497 198 38 Hop 11 | . . 5 6 . Pick Up 34 | 2 12 15 4 1 Fast Attach 12 | 6 3 1 2 . Attach 10 | . 2 6 2 . Detach . | . . . . . Swap 23 | . 9 11 . 3 Drop 34 | . 9 17 5 3 Fire 73 | . 22 36 15 . Melee 33 | . . 23 10 . Ram . | . . . . . Kick . | . . . . . Crush . | . . . . . Escape Stasis . | . . . . . Rewire . | . . . . . Trap . | . . . . . Miscellaneous . | . . . . . Route ------- -11/Scrapyard -10/Materials -9/Materials -9/Storage -9/Garrison History --------- Turn | Location | Event 14 | -11/Scrapyard | Discovered new exit (range 15) 60 | -11/Scrapyard | Entered Materials 333 | -10/Materials | Build established: Mutant 399 | -10/Materials | Discovered new exit (range 3) 410 | -10/Materials | Entered another Materials area 410 | -9/Materials | Evolved 2 slots: Utility x2 897 | -9/Materials | Repaired Shield Generator 1014 | -9/Materials | Discovered new exit (range 10) 1036 | -9/Materials | Entered Storage 1174 | -9/Storage | Core integrity fell below 50% 1200 | -9/Storage | Core integrity fell below 20% 1211 | -9/Storage | Identified exit to Garrison 1211 | -9/Storage | Entered Garrison 1221 | -9/Garrison | Lost 3 parts (1p1u1w) 1316 | -9/Garrison | Self-destructed Last Messages --------------- 01180_ Critical hit (Burn: +37). 01184_ K-01 Serf cleans the Transport Mainframe. 01184_ Critical hit (Burn: +37). 01188_ K-01 Serf cleans the Transport Mainframe. 01190_ Lgt. Assault Rifle destroyed. 01193_ G-34 Mercenary destroyed. 01193_ Critical hit (Burn: +37). 01201_ K-01 Serf collects debris. 01202_ R-06 Scavenger collects Aluminum Leg. 01206_ K-01 Serf cleans the Storage Shell. 01211_ Connecting with Garrison Access... >>Unlock Access door unlocked. 01211_ EXIT=UNLOCKED: GARRISON LOCATION=GARRISON GOAL=ESCAPE 01214_ Dropped Imp. Flight Unit. 01225_ Acquired Imp. Flight Unit. 01251_ Dropped Lgt. Assault Rifle. 01284_ Dropped Weight Redist. System. Map ----- +----------------------------------------------------+ | ??????????????????????????????????? ??????# #?? | | ??????????????????????????????????? ??????# #?? | | ??????????????????????????????????? ??????# [!#?? | | ??????????????????????????????????? #?????# ###?? | | ??????????????????????????????????? #?????# #???? | | ??????????????????????????????????? #?????# #???? | | ??????????????????????????????????# #?????# #???? | | ??????????????????????????????????# #?????# #???? | | ??????????????????????????????????# #?????# #???? | | ??????????????????????? ??????????# #?????# #???? | | ??????????????????????# ??????????# #?????# #???? | | ??????????????????????# ??????????# #?????# #???? | | ??????????????????????# ########### ####### #???? | | ??????????????????????# #???? | | ??????????????????????# #???? | | ??????????????????????# ######### ##########???? | | ??????????????????????# ????????# #????????????? | | ??????????????????????#bg????????# #????????????? | | ??????????????????????# ????????# #????????????? | | ??????????????????????# ????????# #????????????? | | ??????????????????????# ????????# #????????????? | | ???????????######""""## ##??????# #????????????? | | ??????????## ######## #????????????? | | ????????? #????????????? | | ????????? #????????????? | | ???????????# ## ## @###########????????????? | | ????????????????#?????# #??????????????????????? | | ????????????????????? "??????????????????????? | | ??????????????????? "??????????????????????? | | ????????????????? "??????????????????????? | | ??????????????? "??????????????????????? | | ????????????? ## ## #??????????????????????? | | ???????????# ???# ?# #??????????????????????? | | ??????????????? ?? #??????????????????????? | | ?????????????? ??? #??????????????????????? | | ????????????? ??? ???????????????????????? | | ???????????? ##"???## ???????????????????????? | | ???????????? ????????# ???????????????????????? | | ??????????????????????# ???????????????????????? | | ??????????????????????# ???????????????????????? | | ??????????????????????# ???????????????????????? | | ??????????????????????? ???????????????????????? | | ??????????????????????? ???????????????????????? | | ?????????????????????????????????????????????????? | | ?????????????????????????????????????????????????? | | ?????????????????????????????????????????????????? | | ?????????????????????????????????????????????????? | | ?????????????????????????????????????????????????? | | ?????????????????????????????????????????????????? | | ?????????????????????????????????????????????????? | +----------------------------------------------------+ Best States ------------- Heat Dissipation 28 Energy Generation 10 Energy Capacity 250 Matter Stores 300 Matter Capacity 300 Sight Range 18 Terrain Scan Density 10 Additional Mass Support 6 Evasion (%) 62 Targeting Accuracy 5 Item Schematics ----------------- None Robot Schematics ------------------ None Fabricated ------------ Nothing Alien Tech Used ----------------- None Achievements -------------- None Challenges ------------ None Game ------ Seed CargoTiamatShifter Manual? 0 Play Time 00:20:59 Cumulative 55.5 hours Start 2024.04.28 @ 16:25:37 End 2024.04.28 @ 16:45:58 Sessions 1 Manual Loads 0 Difficulty Rogue Special Mode None Game No. 91 Rogue 75 Adventurer 16 Explorer 0 Win Type - Total 0 Types 0/0/0/0/0/0/0/0/0 Lore% 17 Gallery% 36 Achievement% 27 Wizard Run 0 Options --------- Layout 1 ASCII 0 Keyboard 0 Movement Mouse Keybinds 0 Fullscreen 2 Font 24/Smallcaps Map View 50x35 Zoom Use 0% Tactical HUD 1 Map Filters NONE Filters NONE Steam 1 RUN: 6eb15d91-b055-4828-a853-0fb52f895aa7